Cogmind - Beta 13 @@@ ROGUE MODE // 2024.04.18 @ 17:43:10 Player: m1m1c Result: Smashed by cave-in Performance ------------- Evolutions (2) 1000 Regions Visited (5) 1000 Robots Destroyed (65) 325 Value Destroyed (1331) 1331 Prototype IDs (24) 480 Alien Tech Used (0) 0 Bonus (40) 40 TOTAL SCORE: 4176 Bonus ------- High Alert Combat Kills 55 Follower Combat Kills 35 Aligned with FarCom 300 Friendly Fire -350 Cogmind --------- Core Integrity 0/550 Matter 132/500 Energy 131/265 System Corruption 14% Temperature Cool (4) Movement Core (1850) Ox36 Location -8/Materials Parts ------- > --- POWER (1) -------- Improved Ion Engine > --- PROPULSION (2) --- (None) > --- UTILITY (6) ------ Medium Storage Unit Huge Storage Unit High-capacity Matter Pod Trap Reconfigurator > --- WEAPON (2) ------- Gauss Rifle Rocket Launcher > --- INVENTORY (25) --- Cesium-ion Thruster Transport Network Coupler Bomb Drone Bay Spread Laser Light Assault Rifle Improved Light Cannon Rocket Launcher Rocket Launcher Mini Grenade Launcher Peak State ------------ > --- POWER ------------ Light Ion Engine > --- PROPULSION ------- Medium Treads Wheel > --- UTILITY ---------- Huge Storage Unit Targeting Computer Hardened Light Armor Plating Improved Shield Generator Hacking Suite Trap Reconfigurator > --- WEAPON ----------- Gauss Rifle Mini Grenade Launcher > --- INVENTORY -------- Improved Ion Engine Light Treads Heat Sink Medium Storage Unit High-capacity Matter Pod Visual Processing Unit Transport Network Coupler Bomb Drone Bay Spread Laser Light Assault Rifle Improved Light Cannon Rocket Launcher Rocket Launcher Rocket Launcher Rocket Launcher Rocket Launcher Mini Grenade Launcher Mini Grenade Launcher Mini Grenade Launcher Mining Laser [Rating: 36] Favorites ----------- Power Light Ion Engine Engine Light Ion Engine Propulsion Light Treads Treads Light Treads Leg Aluminum Leg Wheel Wheel Utility Huge Storage Unit Device Trap Reconfigurator Storage Huge Storage Unit Processor Targeting Computer Hackware Hacking Suite Protection Hardened Light Armor Plating Weapon Mini Grenade Launcher Energy Gun Small Laser Ballistic Gun Light Assault Rifle Launcher Mini Grenade Launcher Special Weapon Mining Laser Build | -11 -10 -10 -10 -9 -8 ------- Run | Yrd Mat Min Exi Min Mat Slots Evolved 4 | . . . . . 4 Power . | . . . . . . Propulsion . | . . . . . . Utility 4 | . . . . . 4 Weapon . | . . . . . . Parts Attached 44 | 2 9 5 2 4 22 Power 4 | . 1 2 . . 1 Engine 4 | . 1 2 . . 1 Core . | . . . . . . Reactor . | . . . . . . Propulsion 10 | 2 1 1 . 2 4 Treads 8 | 2 . 1 . 1 4 Leg . | . . . . . . Wheel 2 | . 1 . . 1 . Hover . | . . . . . . Flight . | . . . . . . Utility 14 | . 2 . 2 . 10 Device 4 | . . . 2 . 2 Storage 3 | . 1 . . . 2 Processor 3 | . 1 . . . 2 Hackware 1 | . . . . . 1 Protection 3 | . . . . . 3 Artifact . | . . . . . . Weapon 16 | . 5 2 . 2 7 Energy Gun 2 | . 2 . . . . Energy Cannon . | . . . . . . Ballistic Gun 3 | . . 1 . 1 1 Ballistic Cannon . | . . . . . . Launcher 10 | . 3 1 . 1 5 Special Weapon 1 | . . . . . 1 Impact Weapon . | . . . . . . Slashing Weapon . | . . . . . . Piercing Weapon . | . . . . . . Special Melee Weapon . | . . . . . . Unidentified Prototypes 1 | . . . 1 . . Parts Lost 27 | . 4 3 . . 20 Power 4 | . 1 2 . . 1 Propulsion 7 | . 1 1 . . 5 Utility 8 | . . . . . 8 Weapon 8 | . 2 . . . 6 Highest Loss Streak 13 | . 2 1 . . 13 To Critical Strikes . | . . . . . . Average Slot Usage (%) 95 | . 90 98 85 99 89 Engine 13 | . 13 13 14 14 6 Treads 15 | . 21 13 14 14 10 Wheel 11 | . 7 14 14 14 6 Device 3 | . . . 6 14 15 Storage 13 | . 14 14 14 14 9 Processor 10 | . 10 14 8 . 8 Energy Gun 5 | . 15 3 . . . Ballistic Gun 9 | . 6 10 14 14 4 Launcher 8 | . . 13 . 13 10 Naked Turns . | . . . . . . Heaviest Build 98 | 11 87 87 85 89 98 Greatest Support 48 | 40 40 10 10 10 48 Greatest Overweight (x) 9 | . 8 8 8 8 9 Average Overweight (x) 7 | . 4 8 8 8 7 Largest Inventory Capacity 25 | 8 25 25 25 25 25 Average Capacity 23 | 8 20 25 25 25 25 Most Carried 25 | 6 25 25 25 25 24 Average Carried 22 | 5 14 24 24 24 21 Final Capacity 25 | 8 25 25 25 25 25 Final Carried 25 | 4 25 25 24 25 10 Class Distribution -------------------- 100% | Mutant Dominant Class ---------------- Mutant | -10/Materials Mutant | -10/Mines Mutant | -10/Exiles Mutant | -9/Mines Mutant | -8/Materials Resources | -11 -10 -10 -10 -9 -8 ----------- Run | Yrd Mat Min Exi Min Mat Matter Collected 981 | 200 308 251 . 108 114 Remotely . | . . . . . . Salvage Created 1149 | . 456 229 . 19 445 Parts 116 | . 50 14 . 6 46 Haulers Intercepted 1 | . 1 . . . . Recyclers Shooed . | . . . . . . Parts Field Recycled . | . . . . . . Retrieved Matter . | . . . . . . Parts Self-Destructed . | . . . . . . Prevented . | . . . . . . Kills | -11 -10 -10 -10 -9 -8 ------- Run | Yrd Mat Min Exi Min Mat Combat Hostiles Destroyed 40 | . 17 9 . 3 11 Guns 14 | . 12 1 . . 1 AOE 26 | . 5 8 . 3 10 Classes Destroyed 12 | . 6 1 . . 5 Worker 6 | . 3 . . . 3 Builder 7 | . 1 . . . 6 Tunneler 1 | . . . . . 1 Hauler 1 | . 1 . . . . Recycler 3 | . . . . . 3 Mechanic 2 | . . 1 . . 1 Operator 3 | . 1 . . 1 1 Watcher 1 | . . . . . 1 Swarmer 18 | . 12 3 . 3 . Grunt 20 | . 5 6 . . 9 Brawler 1 | . . . . . 1 Sentry 1 | . . . . . 1 Thug 1 | . . 1 . . . Best Kill Streak 16 | . 3 5 . 3 16 Combat Bots Only 6 | . 3 4 . 3 6 Max Kills in Single Turn 3 | . 2 3 . 3 3 Gunslinging . | . . . . . . Exploded 2 | . 2 2 . 2 1 Melee . | . . . . . . Uniques/NPCs Destroyed . | . . . . . . Combat | -11 -10 -10 -10 -9 -8 -------- Run | Yrd Mat Min Exi Min Mat Hostile Shots Fired 237 | . 94 6 . 2 135 Missed 71 | . 32 1 . 1 37 Damage Taken 3491 | . 712 257 . 6 2516 Core 783 | . 134 85 . . 564 Absorbed by Shields 29 | . . . . . 29 Core Remaining (%) 56 | 100 . . . 12 . Volleys Fired 112 | . 75 7 . 3 27 Largest 2 | . 2 2 . 2 2 Hottest 130 | . 80 70 . 50 130 Shots Fired 154 | . 88 17 . 9 40 Gun 104 | . 83 9 . 6 6 Cannon . | . . . . . . Launcher 45 | . 5 8 . 3 29 Special 5 | . . . . . 5 Kinetic 76 | . 60 4 . 6 6 Thermal 33 | . 23 5 . . 5 Explosive 45 | . 5 8 . 3 29 Electromagnetic . | . . . . . . Robot Hit Streak 14 | . 7 4 . 1 14 Robot Miss Streak 5 | . 4 2 . 5 2 Penetration Max . | . . . . . . Secondary Targets . | . . . . . . Shots Hit Robots 72 | . 48 4 . 2 18 Core Hits 99 | . 30 19 . 6 44 Critical Kills . | . . . . . . Critical Parts Destroyed . | . . . . . . Critical Strikes . | . . . . . . Melee Attacks . | . . . . . . Impact . | . . . . . . Slashing . | . . . . . . Piercing . | . . . . . . Sneak Attacks . | . . . . . . Combat Hostiles . | . . . . . . Follow-up Attacks . | . . . . . . Damage Inflicted 4175 | . 889 903 . 361 2022 Guns 654 | . 543 50 . 26 35 Cannons . | . . . . . . Explosions 3394 | . 324 792 . 335 1943 Melee . | . . . . . . Ramming 103 | . 22 61 . . 20 Kinetic 480 | . 402 17 . 26 35 Thermal 198 | . 141 33 . . 24 Explosive 3394 | . 324 792 . 335 1943 Electromagnetic . | . . . . . . Impact . | . . . . . . Slashing . | . . . . . . Piercing . | . . . . . . Highest Corruption 13 | . . 4 9 9 13 Average Corruption 5 | . . 4 6 9 4 Corruption Purged . | . . . . . . Corruption Blocked . | . . . . . . Effects 107 | . . 64 9 29 5 Message Errors 28 | . . 15 3 8 2 Matter Fused 28 | . . 20 3 5 . Heat Flow Errors 8 | . . 6 2 . . Energy Discharges 11 | . . 6 . 5 . Parts Rejected 1 | . . . . . 1 Parts Fused 1 | . . . . 1 . Data Loss (minor) 17 | . . 10 1 5 1 Data Loss (major) 4 | . . 3 . 1 . Misfires 7 | . . 4 . 3 . Alerts 1 | . . . . 1 . Weapon Failures 1 | . . . . . 1 Overload Shots . | . . . . . . Overflow Damage 84 | . 26 32 . 10 16 Projectiles . | . . . . . . Explosions 79 | . 26 27 . 10 16 Melee 5 | . . 5 . . . Knockbacks 2 | . . 2 . . . Impact 2 | . . 2 . . . Kinetic . | . . . . . . Secondary . | . . . . . . Self-Inflicted Damage 814 | . 102 203 . . 509 Shots 23 | . 4 6 . . 13 Rammed 13 | . 4 4 . . 5 Targets Rammed 14 | . 4 4 . . 6 Kicked . | . . . . . . Crushed 1 | . . . . . 1 Highest Temperature 240 | . 36 240 221 10 46 Average Temperature 57 | . 17 83 105 7 13 Received Heat Transfer 984 | . 135 42 . . 807 Siege Activations . | . . . . . . Robots Corrupted . | . . . . . . Combat Hostiles . | . . . . . . Parts Fried . | . . . . . . Impact Corruptions 1 | . . 1 . . . Robots Melted . | . . . . . . Combat Hostiles . | . . . . . . Parts Melted 2 | . 1 1 . . . Heat Transferred 450 | . 325 75 . . 50 Parts Sabotaged . | . . . . . . Parts Stolen . | . . . . . . Parts Stripped . | . . . . . . Power Chain Reactions . | . . . . . . Alert | -11 -10 -10 -10 -9 -8 ------- Run | Yrd Mat Min Exi Min Mat Peak Influence 524 | . 292 224 . 100 524 Initial 16 | . . 16 . . . Average 65 | . 138 24 . 34 109 Maximum Alert Level 2 | . 1 1 . . 2 Low Security (%) 87 | 100 72 94 . 100 74 Level 1 11 | . 27 5 . . 10 Level 2 1 | . . . . . 15 Level 3 . | . . . . . . Level 4 . | . . . . . . Level 5 . | . . . . . . High Security . | . . . . . . Max Security . | . . . . . . Squads Dispatched 7 | . 2 1 . 1 3 Investigation 2 | . 1 . . 1 . Extermination . | . . . . . . Reinforcement 4 | . 1 . . . 3 Assault 1 | . . 1 . . . Garrison . | . . . . . . Intercept . | . . . . . . Searches Triggered . | . . . . . . Construction Impeded 2 | . . . . . 2 Haulers Reinforced . | . . . . . . Active Scanning Responses . | . . . . . . Cargo Convoy Interrupts . | . . . . . . Stealth | -11 -10 -10 -10 -9 -8 --------- Run | Yrd Mat Min Exi Min Mat Distress Signals 7 | . 3 . . . 4 Communications Jammed . | . . . . . . Distress Signals . | . . . . . . Times Spotted 64 | . 33 10 . 4 17 Peak Tracking Total 9 | . 5 4 . 4 9 Tactical Retreats 3 | . 2 . . . 1 Traps | -11 -10 -10 -10 -9 -8 ------- Run | Yrd Mat Min Exi Min Mat Traps Triggered 2 | . 2 . . . . Indirectly . | . . . . . . Trap Hack Attempts . | . . . . . . Triggered . | . . . . . . Disarmed . | . . . . . . Reprogrammed . | . . . . . . Reused . | . . . . . . Traps Reconfigurated 1 | . . . . . 1 Traps Extracted . | . . . . . . Installed . | . . . . . . Triggered . | . . . . . . Machines | -11 -10 -10 -10 -9 -8 ---------- Run | Yrd Mat Min Exi Min Mat Machines Disabled 8 | . 1 2 . . 5 Max in Single Turn 2 | . 1 2 . . 2 Machines Repaired . | . . . . . . Machines Dismantled . | . . . . . . Machines Sabotaged . | . . . . . . Overloaded Fab Kills . | . . . . . . Hacking | -11 -10 -10 -10 -9 -8 --------- Run | Yrd Mat Min Exi Min Mat Machines Accessed 14 | . 7 1 1 1 4 Terminals 11 | . 7 . . . 4 Fabricators . | . . . . . . Repair Stations . | . . . . . . Recycling Units . | . . . . . . Scanalyzers . | . . . . . . Garrison Access . | . . . . . . Total Hacks 36 | . 19 1 1 1 14 Successful 18 | . 10 1 1 1 5 Failed 18 | . 9 . . . 9 Catastrophic 4 | . 3 . . . 1 Database Lockouts . | . . . . . . Manual 35 | . 19 . 1 . 15 Terminals 33 | . 19 . . . 14 Fabricators . | . . . . . . Repair Stations . | . . . . . . Recycling Units . | . . . . . . Scanalyzers . | . . . . . . Garrison Access . | . . . . . . Terminal Hacks 5 | . 1 1 1 1 1 Open Door 2 | . . 1 . 1 . Terminal Index 2 | . 1 . . . 1 Derelict Proto ID Bank 1 | . . . 1 . . Fabricator Hacks . | . . . . . . Repair Station Hacks . | . . . . . . Recycling Unit Hacks . | . . . . . . Scanalyzer . | . . . . . . Garrison Access Hacks . | . . . . . . Unauthorized Hacks 13 | . 9 . . . 4 Terminals 13 | . 9 . . . 4 Assimilate 8 | . 6 . . . 2 Botnet 4 | . 3 . . . 1 Operators 1 | . . . . . 1 Fabricators . | . . . . . . Repair Stations . | . . . . . . Recycling Units . | . . . . . . Scanalyzers . | . . . . . . Garrison Access . | . . . . . . Data Cores Recovered . | . . . . . . Used . | . . . . . . Hacking Detections 10 | . 6 . . . 4 Full Trace Events 1 | . 1 . . . . Feedback Events . | . . . . . . Feedback Blocked . | . . . . . . Robot Schematics Acquired . | . . . . . . Robots Built . | . . . . . . Authchips . | . . . . . . Time . | . . . . . . Total Robot Build Rating . | . . . . . . Part Schematics Acquired . | . . . . . . Parts Built . | . . . . . . Authchips . | . . . . . . Time . | . . . . . . Total Part Build Rating . | . . . . . . Parts Repaired . | . . . . . . Time . | . . . . . . Parts Recycled . | . . . . . . Recycled Matter . | . . . . . . Retrieved Matter . | . . . . . . Retrieved Components . | . . . . . . Parts Scanalyzed . | . . . . . . Part Schematics Acquired . | . . . . . . Parts Damaged . | . . . . . . Bothacking | -11 -10 -10 -10 -9 -8 ------------ Run | Yrd Mat Min Exi Min Mat Used RIF Installer . | . . . . . . Robots Hacked . | . . . . . . Non-combat . | . . . . . . Combat . | . . . . . . Robot Hacks Applied . | . . . . . . Relay Couplers Released . | . . . . . . Fabnet Peak Effective % . | . . . . . . Robots Rewired . | . . . . . . Allies Hacked . | . . . . . . Hacks Repelled . | . . . . . . Allies | -11 -10 -10 -10 -9 -8 -------- Run | Yrd Mat Min Exi Min Mat Total Allies 5 | . 1 2 . 2 . Largest Group 3 | . 1 2 1 3 2 Highest-Rated Group 57 | . 10 41 10 57 47 Highest-Rated Ally 31 | . 10 31 10 31 31 Total Orders 5 | . 2 2 . 1 . STAY 3 | . 1 1 . 1 . FOLLOW 2 | . 1 1 . . . Ally Attacks 13 | . . 6 . 3 4 Total Damage 210 | . . 103 . 20 87 Kills 1 | . . . . . 1 Allies Corrupted . | . . . . . . Allies Melted . | . . . . . . Intel | -11 -10 -10 -10 -9 -8 ------- Run | Yrd Mat Min Exi Min Mat Robot Analysis Total . | . . . . . . Derelict Logs Recovered 3 | . . 2 . 1 . Drone Launches . | . . . . . . Drone Recoveries . | . . . . . . Exploration | -11 -10 -10 -10 -9 -8 ------------- Run | Yrd Mat Min Exi Min Mat Turns Passed 7492 | 3 1896 3416 488 1008 681 Spaces Moved 3319 | 1 791 1634 243 486 164 Core . | . . . . . . Treads 369 | 1 340 . . . 28 Legs . | . . . . . . Wheels 2950 | . 451 1634 243 486 136 Hover . | . . . . . . Flight . | . . . . . . Fastest Speed 160 | 160 160 200 200 200 215 Average Speed 203 | 160 209 200 200 200 233 Slowest Speed 480 | 160 480 200 200 200 480 Overloaded Moves . | . . . . . . Propulsion Burnouts . | . . . . . . Robots Hopped . | . . . . . . Cave-ins Triggered 2 | . . . . . 2 Exploration Rate (%) 54 | 2 89 98 42 72 23 Regions Visited 5 Branch Regions 3 Pre-discovered Areas . | . . . . . . Known Exits Taken . | . . . . . . Unknown Exits Taken 5 | 1 1 1 1 1 . Scrap Searched 3 | . . 1 . 2 . Spaces Dug 4 | . . . . . 4 Terrain Destroyed 399 | . 38 91 . 38 232 Melee . | . . . . . . Projectile 5 | . . . . . 5 AOE 394 | . 38 91 . 38 227 Terrain Rammed . | . . . . . . Walls Destroyed . | . . . . . . Machines Disabled . | . . . . . . Actions | -11 -10 -10 -10 -9 -8 --------- Run | Yrd Mat Min Exi Min Mat Total 3891 | 4 947 1772 246 519 403 Wait 332 | . 27 108 . 18 179 Move 3314 | . 790 1633 242 485 164 Hop . | . . . . . . Pick Up 46 | . 31 7 . 4 4 Fast Attach 9 | . 3 1 1 2 2 Attach 35 | 2 6 4 1 2 20 Detach 6 | . 3 1 . 1 1 Swap . | . . . . . . Drop 23 | 2 8 7 2 4 . Fire 112 | . 75 7 . 3 27 Melee . | . . . . . . Ram 5 | . 1 4 . . . Kick . | . . . . . . Crush 9 | . 3 . . . 6 Escape Stasis . | . . . . . . Rewire . | . . . . . . Trap . | . . . . . . Miscellaneous . | . . . . . . Route ------- -11/Scrapyard -10/Materials (discovered 4 exits: [*Mat x3] / *Min) -10/Mines (discovered 4 exits: [*Mat x2] / *Exi / [*Sub]) -10/Exiles -9/Mines -8/Materials (discovered 1 exit: Fac) History --------- Turn | Location | Event 4 | -11/Scrapyard | Discovered new exit (range 0) 4 | -11/Scrapyard | Entered Materials 329 | -10/Materials | Build established: Mutant 650 | -10/Materials | Discovered new exit (range 9) 704 | -10/Materials | Derelicts attacked the area 753 | -10/Materials | Discovered new exit (range 7) 1200 | -10/Materials | Discovered new exit (range 6) 1355 | -10/Materials | Core integrity fell below 50% 1516 | -10/Materials | Discovered new exit (range 16) 1900 | -10/Materials | Entered Mines 1900 | -10/Mines | Accompanied by 1 ally 1902 | -10/Mines | Met a Derelict bent on vengeance 1907 | -10/Mines | Received a Rocket Launcher from a helpful Derelict 1927 | -10/Mines | Discovered new exit (range 8) 1928 | -10/Mines | Met a Derelict testing a Signal Generator 2156 | -10/Mines | Learned Materials emergency access door positions 2177 | -10/Mines | Found a damaged Exp. Sensor Array with a note attached 2181 | -10/Mines | Found Prototype Device 2269 | -10/Mines | Received a Mining Laser from a helpful Derelict 2642 | -10/Mines | Discovered new exit (range 12) 2665 | -10/Mines | Found the Drone Emporium 2676 | -10/Mines | Found Prototype Device 2730 | -10/Mines | Learned Materials stockpile data 2750 | -10/Mines | Deemed a non-threat by the Exiles lab entrance 2752 | -10/Mines | Discovered new exit (range 5) 4430 | -10/Mines | Discovered new exit (range 15) 4471 | -10/Mines | Core integrity fell below 20% 5316 | -10/Mines | Entered Exiles 5316 | -10/Exiles | Accompanied by 1 ally 5378 | -10/Exiles | Met 8R-AWN 5412 | -10/Exiles | Met EX-HEX 5470 | -10/Exiles | Met EX-BIN 5492 | -10/Exiles | Aligned with FarCom system 5494 | -10/Exiles | Given EX-Vault access code 5542 | -10/Exiles | Opened EX-Vault 5591 | -10/Exiles | Identified Exp. Sensor Array 5593 | -10/Exiles | Found Trap Reconfigurator 5640 | -10/Exiles | Warned to stay clear of 0b10 Research branches 5776 | -10/Exiles | Discovered new exit (range 15) 5804 | -10/Exiles | Left Exiles lab with Trap Reconfigurator 5804 | -10/Exiles | Entered Mines 5804 | -9/Mines | Accompanied by 1 ally 6287 | -9/Mines | Learned location of 1 exit from Materials 6669 | -9/Mines | Discovered new exit (range 14) 6704 | -9/Mines | Met a Derelict shopkeep closing up shop 6812 | -9/Mines | Entered Materials 6812 | -8/Materials | Accompanied by 2 allies 6812 | -8/Materials | Evolved 4 slots: Utility x4 6813 | -8/Materials | Identified exit to Factory 6817 | -8/Materials | Led the pair of lost Derelicts to an unsafe place 7362 | -8/Materials | Lost 7 parts (1p1n3u2w) 7441 | -8/Materials | Core integrity fell below 50% 7480 | -8/Materials | Core integrity fell below 20% 7483 | -8/Materials | Crushed by falling debris 7483 | -8/Materials | System corruption reached 10% 7494 | -8/Materials | Crushed by falling debris 7494 | -8/Materials | Smashed by cave-in Last Messages --------------- Mni. Grenade Launcher destroyed. System corrupted by crushing effect (+5). CPZAC5UU=E0EYVAJ R-06 Scavenger inserts Aluminum Leg into recycling unit. Lgt. Treads destroyed. R-06 Scavenger inserts Heat Sink into recycling unit. Slug penetrates G-47 Trooper. G-47 Trooper destroyed. R-06 Scavenger inserts Unknown Hover Unit into recycling unit. Slug penetrates Earth. The unstable cave ceiling collapses. Crushed by falling debris. Visual Processing Unit destroyed. System corrupted by crushing effect (+1). Map ----- +----------------------------------------------------+ | ?????????????????????????????????????????????????? | | ?????????????????????????????????????????????????? | | ?????????????????????????????????????????????????? | | ?????????????????????????????????????????????????? | | ?????????????????????????????????????????????????? | | ?????????????????????????????????????????????????? | | ?????????????????????????????????????????????????? | | ?????????????????????????????????????????????????? | | ?????????????????????????????????????????????????? | | ?????????????????????????????????????????????????? | | ?????????????????????????????????????????????????? | | ?????????????????????????????????????????????????? | | ?????????????????????????????????????????????????? | | ?????????????????????????????????????????????????? | | ???????????????????? ????????????????????????????? | | ????????????????####+######??????????????????????? | | ????????????????# ] ga #??????????????????????? | | ????????????????? #??????????????????????? | | ????????????????# #?????!????????????????? | | ??????????#####?# """ """ #??????????????????????? | | ?????????? # """ """ #??????????????????????? | | ????????? # """ """ #??????????????????????? | | ????????? ![[ ![ ###??????????g?????????? | | ???????? ![[ [%* ##????????g??????????? | | ???????? [[[ ##= #####????g??????????? | | ???????? # #= #@ # ##??????????????? | | ???????# %=##= !% # ###????????????? | | ???????# # ! !##???????????? | | ???????? # """ #g??????????? | | +???????????### # ## "Yr ##???????????? | | ????? # g % """ #??l?????????? | | ????? [ # # % #??g?????????? | | ????? ## = #????????????? | | ?????# # %!# # #???????????? | | ?????# # % * ! ??????????? | | #????# # * == #???????? | | ###### #% # ## =%! " #???????? | | ]]## + ##?# #???????? | | ]]## ! # #??### ## #???????? | | [[#### # #????# ### ??????? | | [[### """ # #????# #?## ??????? | | !!### "T" # #????# #??# ??????? | | !! ## # #????# ???? # # ###???????? | | ####### # #????# ???? # ????????? | | #?????# # #????# ???? # """ ""?????????? | | #?????# """ # #????? ???? ? "??????????????? | | #?????# """ # #?????????? ??"??????????????? | | #?????# """ + #?????????? ?????????????????? | | #?????# # #?????????? ?????????????????? | | #?????########## #????????????????????????????? | +----------------------------------------------------+ Best States ------------- Heat Dissipation 41 Energy Generation 12 Energy Capacity 265 Matter Stores 300 Matter Capacity 500 Sight Range 18 Terrain Scan Density 10 Armor Coverage 305 Evasion (%) 40 Targeting Accuracy 5 Recoil Reduction 2 Offensive Hacking 10 Item Schematics ----------------- None Robot Schematics ------------------ None Fabricated ------------ Nothing Alien Tech Used ----------------- None Achievements -------------- None Challenges ------------ None Game ------ Seed OpticalAssembledFlail Manual? 0 Play Time 00:41:48 Cumulative 42.3 hours Start 2024.04.18 @ 15:39:08 End 2024.04.18 @ 17:43:10 Sessions 1 Manual Loads 0 Difficulty Rogue Special Mode None Game No. 97 Rogue 95 Adventurer 0 Explorer 2 Win Type - Total 0 Types 0/0/0/0/0/0/0/0/0 Lore% 19 Gallery% 37 Achievement% 30 Wizard Run 0 Options --------- Layout 1 ASCII 1 Keyboard 0 Movement Arrows Keybinds 1 Fullscreen 1 Font 18/SmallcapsGlow Map View 50x40 Zoom Use 0% Tactical HUD 0 Map Filters NONE Filters NONE Steam 1 RUN: 441d21dd-cd32-4f4e-9292-58a87ca97a19